bitfinex/quotes_SOLUSD_20250111
["timestamp","ask_amount","ask_price","bid_price","bid_amount"]
[1736568184599,9.01668517,186.73,186.72,216.80360104]
[1736568190125,32.79356917,186.73,186.72,216.80360104]
[1736568194029,32.79356917,186.73,186.72,81.20360104]
[1736568198127,23.776884,186.72,186.66,140.55704927]
[1736568198445,9.01668517,186.67,186.66,140.55704927]
[1736568198602,9.01668517,186.67,186.66,24.95704927]
[1736568202337,9.01668517,186.67,186.66,4.95704927]
[1736568202338,32.79356917,186.67,186.66,4.95704927]
[1736568202639,68.86030985,186.67,186.66,4.45704927]
[1736568206044,23.776884,186.66,186.63,140.05704927]
[1736568206241,32.79356917,186.64,186.63,140.05704927]
[1736568206928,1.00463517,186.7,186.63,140.05704927]
[1736568207136,9.01668517,186.64,186.63,140.05704927]
[1736568211915,9.01668517,186.64,186.63,4.45704927]
[1736568213243,1.00448442,186.74,186.63,140.05704927]
[1736568213416,9.01668517,186.66,186.63,148.06874927]
[1736568214648,9.01668517,186.65,186.63,148.06874927]
[1736568219138,23.776884,186.71,186.63,148.06874927]
[1736568219334,9.01668517,186.65,186.63,148.06874927]
[1736568219849,9.01668517,186.64,186.63,148.06874927]
[1736568229675,9.01668517,186.64,186.63,140.05704927]
[1736568235881,9.01668517,186.64,186.63,4.45704927]
[1736568243276,23.776884,186.69,186.63,140.05704927]
[1736568243457,9.01668517,186.64,186.63,140.05704927]
[1736568244077,23.776884,186.69,186.63,140.05704927]
[1736568244283,9.01668517,186.64,186.63,140.05704927]
[1736568247785,9.01668517,186.64,186.63,4.45704927]
[1736568253888,9.01668517,186.64,186.63,140.05704927]
[1736568261081,23.776884,186.69,186.63,140.05704927]
[1736568261288,9.01668517,186.64,186.63,140.05704927]
[1736568265082,5.0,186.73,186.63,140.05704927]
[1736568265288,1.0043418,186.72,186.63,140.05704927]
[1736568265492,9.01668517,186.66,186.63,140.05704927]
[1736568266517,9.01668517,186.65,186.63,140.05704927]
[1736568268621,9.01668517,186.64,186.63,140.05704927]
[1736568276604,32.79356917,186.64,186.63,140.05704927]
[1736568278441,9.01668517,186.64,186.63,140.05704927]
[1736568278750,23.776884,186.7,186.63,140.05704927]
[1736568279042,9.01668517,186.64,186.63,140.05704927]
[1736568280203,32.79356917,186.64,186.63,140.05704927]
[1736568288710,1.0046258,186.7,186.63,140.05704927]
[1736568288910,9.01668517,186.64,186.63,140.05704927]
[1736568303857,23.776884,186.63,186.55,63.8104975]
[1736568304030,37.07130858,186.66,186.55,145.1104975]
[1736568304031,9.01668517,186.56,186.55,145.1104975]
[1736568305470,9.01668517,186.58,186.55,145.1104975]
[1736568309179,9.01668517,186.56,186.55,81.3]
[1736568310843,9.01668517,186.58,186.55,216.9]
[1736568315691,9.01668517,186.59,186.55,216.9]
[1736568318299,9.01668517,186.58,186.55,216.9]
[1736568331146,9.01668517,186.57,186.55,216.9]
[1736568332712,9.01668517,186.58,186.55,216.9]
[1736568333304,1.00483394,186.67,186.57,216.9]
[1736568333490,7.89403983,186.69,186.58,0.40218907]
[1736568333693,9.01668517,186.63,186.61,20.0]
[1736568334213,8.95219394,186.63,186.61,20.0]
[1736568336611,8.95219394,186.63,186.61,236.9]
[1736568336819,9.01668517,186.64,186.61,236.9]
[1736568340830,1.00451848,186.71,186.61,236.9]
[1736568341019,5.3556,186.72,186.62,0.40190766]
[1736568341020,6.36009913,186.72,186.62,0.40190766]
[1736568341220,9.01668517,186.65,186.62,217.30190766]
[1736568341422,9.01668517,186.65,186.62,216.9]
[1736568356657,6.36009913,186.72,186.62,216.9]
[1736568356963,9.01668517,186.65,186.62,216.9]
[1736568358652,9.01668517,186.64,186.62,216.9]
[1736568362353,24.78126725,186.71,186.62,216.9]
[1736568362556,9.01668517,186.66,186.62,216.9]
[1736568363070,1.00436415,186.74,186.65,20.0]
[1736568363374,9.01668517,186.69,186.65,236.9]
[1736568363555,36.06674068,186.75,186.65,238.5402]
[1736568363556,9.01668517,186.7,186.65,238.5402]
[1736568363758,9.01668517,186.7,186.66,0.40122113]
[1736568363953,23.776884,186.74,186.66,217.30122113]
[1736568364273,9.01668517,186.7,186.66,216.9]
[1736568364472,23.776884,186.77,186.66,216.9]
[1736568364671,9.01668517,186.7,186.66,216.9]
[1736568365662,2.55805158,186.78,186.69,20.0]
[1736568365980,9.01668517,186.73,186.69,236.9]
[1736568366369,9.01668517,186.73,186.7,217.30076677]
[1736568366567,9.01668517,186.73,186.7,216.9]
[1736568368082,9.01668517,186.74,186.7,216.9]
[1736568368261,9.01668517,186.73,186.7,216.9]
[1736568368881,25.59124579,186.81,186.73,236.9]
[1736568369185,9.01668517,186.77,186.73,236.9]
[1736568370859,9.01668517,186.76,186.73,236.9]
[1736568375288,23.776884,186.82,186.73,236.9]
[1736568375468,9.01668517,186.77,186.73,236.9]
[1736568377609,9.01668517,186.76,186.73,236.9]
[1736568378709,9.01668517,186.77,186.73,236.9]
[1736568380509,9.01668517,186.81,186.77,236.9]
[1736568380817,9.01668517,186.82,186.77,238.4052]
[1736568381596,9.01668517,186.82,186.77,244.6696]
[1736568381900,9.01668517,186.82,186.78,0.39995466]
[1736568382288,1.00351842,186.89,186.78,0.39995466]
[1736568382289,9.01668517,186.83,186.78,0.39995466]
[1736568382474,23.776884,186.88,186.78,217.29995466]
[1736568382679,9.01668517,186.83,186.78,216.9]
[1736568382917,9.01668517,186.83,186.81,236.9]
[1736568383087,9.01668517,186.84,186.81,236.9]
[1736568398196,9.01668517,186.86,186.81,236.9]
[1736568398601,9.01668517,186.87,186.81,236.9]
[1736568400728,9.01668517,186.86,186.81,236.9]
[1736568405445,9.01668517,186.87,186.82,1.5343]
[1736568405614,23.776884,186.91,186.86,236.9]
[1736568405816,9.01668517,186.89,186.86,236.9]
[1736568411750,9.01668517,186.9,186.86,236.9]
[1736568411949,9.01668517,186.89,186.86,236.9]
[1736568412253,9.01668517,186.88,186.86,236.9]
[1736568414158,9.01668517,186.9,186.86,236.9]
[1736568414457,9.01668517,186.89,186.86,236.9]
[1736568421425,9.01668517,186.9,186.86,236.9]
[1736568427748,9.01668517,186.89,186.86,236.9]
[1736568429957,10.0,186.92,186.86,236.9]
[1736568430131,9.01668517,186.89,186.86,236.9]
[1736568433058,10.0,186.92,186.79,42.18247603]
[1736568433059,23.776884,186.86,186.79,216.9]
[1736568433262,9.01668517,186.8,186.79,216.9]
[1736568436861,9.01668517,186.8,186.76,135.6]
[1736568437066,9.01668517,186.77,186.74,216.9]
[1736568437372,9.01668517,186.75,186.74,216.9]
[1736568437661,9.01668517,186.76,186.74,216.9]
[1736568438848,9.01668517,186.77,186.74,216.9]
[1736568439167,5.3519,186.85,186.77,20.0]
[1736568439341,9.01668517,186.79,186.77,236.9]
[1736568442175,9.01668517,186.8,186.77,236.9]
[1736568443273,23.776884,186.85,186.77,236.9]
[1736568443483,9.01668517,186.8,186.77,236.9]
[1736568444279,9.01668517,186.81,186.77,236.9]
[1736568444458,9.01668517,186.8,186.77,236.9]
[1736568445458,23.776884,186.85,186.77,236.9]
[1736568445663,9.01668517,186.8,186.77,236.9]
[1736568445867,9.01668517,186.81,186.77,236.9]
[1736568447676,9.01668517,186.8,186.77,236.9]
[1736568447885,9.01668517,186.79,186.77,236.9]
[1736568448074,9.01668517,186.78,186.77,216.9]
[1736568451689,9.01668517,186.78,186.77,81.3]
[1736568460693,23.776884,186.83,186.77,81.3]
[1736568460997,9.01668517,186.78,186.77,81.3]
[1736568461497,23.776884,186.81,186.77,81.3]
[1736568461674,9.01668517,186.78,186.77,81.3]
[1736568463476,1.00383069,186.85,186.77,216.9]
[1736568463675,9.01668517,186.81,186.77,216.9]
[1736568464886,23.776884,186.85,186.77,216.9]
[1736568465086,9.01668517,186.81,186.77,216.9]
[1736568465483,1.00359512,186.88,186.77,216.9]
[1736568465682,9.01668517,186.82,186.78,217.30009965]
[1736568466003,9.01668517,186.81,186.78,216.9]
[1736568466796,9.01668517,186.79,186.78,216.9]
[1736568469003,9.01668517,186.79,186.73,224.9072]
[1736568469303,9.01668517,186.76,186.75,20.0]
[1736568470809,23.776884,186.82,186.75,236.9]
[1736568471105,9.01668517,186.77,186.75,236.9]
[1736568472306,9.01668517,186.78,186.75,236.9]
[1736568473184,9.01668517,186.79,186.75,236.9]
[1736568474306,9.01668517,186.8,186.75,236.9]
[1736568475803,9.01668517,186.79,186.75,236.9]
[1736568475986,9.01668517,186.8,186.75,236.9]
[1736568482609,9.01668517,186.79,186.75,236.9]
[1736568484517,9.01668517,186.8,186.75,236.9]
[1736568485097,9.01668517,186.83,186.79,245.0204]
[1736568485310,9.01668517,186.84,186.79,245.0204]
[1736568486092,9.01668517,186.83,186.79,245.0204]
[1736568490633,9.01668517,186.82,186.79,245.0204]
[1736568491835,9.01668517,186.83,186.79,245.0204]
[1736568493240,23.776884,186.89,186.79,245.0204]
[1736568493730,9.01668517,186.83,186.79,245.0204]
[1736568497531,23.776884,186.89,186.79,245.0204]
[1736568497840,1.00343112,186.91,186.8,135.99977164]
[1736568498134,9.01668517,186.85,186.8,135.6]
[1736568498338,9.01668517,186.85,186.81,0.39966993]
[1736568499438,9.01668517,186.85,186.83,20.0]
[1736568501031,10.0,186.93,186.84,0.39962864]
[1736568501204,9.01668517,186.89,186.84,0.39962864]
[1736568501403,9.01668517,186.89,186.88,155.6]
[1736568508237,10.0,186.93,186.88,155.6]
[1736568508441,9.01668517,186.89,186.88,155.6]
[1736568518750,9.01668517,186.89,186.88,135.6]
[1736568518918,9.01668517,186.89,186.84,135.6]
[1736568519120,9.01668517,186.85,186.84,135.6]
[1736568526451,9.01668517,186.85,186.8,224.6571]
[1736568526643,9.01668517,186.81,186.8,224.6571]
[1736568527038,9.01668517,186.81,186.8,135.6]
[1736568528052,9.01668517,186.81,186.76,135.6]
[1736568528263,9.01668517,186.77,186.76,135.6]
[1736568529162,9.01668517,186.78,186.76,135.6]
[1736568530566,9.01668517,186.79,186.76,135.6]
[1736568530746,1.00369114,186.87,186.76,135.6]
[1736568530946,9.01668517,186.8,186.76,135.6]
[1736568531461,9.01668517,186.79,186.78,20.0]
[1736568534265,23.776884,186.87,186.78,155.6]
[1736568534564,9.01668517,186.79,186.78,155.6]
[1736568544362,9.01668517,186.81,186.78,155.6]
[1736568544866,9.01668517,186.79,186.78,155.6]
[1736568555505,1.6386,186.88,186.78,155.6]
[1736568555679,9.01668517,186.79,186.78,155.6]
[1736568556899,9.01668517,186.83,186.78,236.9]
[1736568557221,9.01668517,186.83,186.79,0.39972301]
[1736568558301,1.00341678,186.91,186.82,20.0]
[1736568558500,9.01668517,186.84,186.82,155.6]
[1736568562594,9.01668517,186.85,186.82,155.6]
[1736568563394,9.01668517,186.86,186.82,236.9]
[1736568563710,9.01668517,186.86,186.83,0.39941856]
[1736568564515,9.01668517,186.86,186.85,20.0]
[1736568565114,9.01668517,186.87,186.85,155.6]
[1736568565696,9.01668517,186.86,186.85,135.6]
[1736568566000,9.01668517,186.86,186.82,216.9]
[1736568566594,9.01668517,186.83,186.82,216.9]
[1736568567783,9.01668517,186.83,186.76,6.4824]
[1736568567784,9.01668517,186.83,186.8,135.6]
[1736568567986,9.01668517,186.81,186.8,135.6]
[1736568568511,9.01668517,186.81,186.76,216.9]
[1736568568713,9.01668517,186.77,186.76,216.9]
[1736568578501,9.01668517,186.78,186.76,216.9]
[1736568578814,9.01668517,186.79,186.76,216.9]
[1736568587240,9.01668517,186.79,186.78,20.0]
[1736568589244,9.01668517,186.81,186.78,155.6]
[1736568589538,9.01668517,186.82,186.78,155.6]
[1736568589942,9.01668517,186.81,186.78,155.6]
[1736568597422,9.01668517,186.8,186.78,155.6]
[1736568597667,9.01668517,186.79,186.78,155.6]
[1736568598162,9.01668517,186.79,186.78,135.6]
[1736568601145,9.01668517,186.79,186.76,216.9]
[1736568601343,9.01668517,186.77,186.76,216.9]
[1736568606749,9.01668517,186.77,186.76,81.3]
[1736568610172,9.01668517,186.77,186.72,216.9]
[1736568610473,1.00376993,186.81,186.72,216.9]
[1736568610474,9.01668517,186.75,186.72,216.9]
[1736568610680,9.01668517,186.77,186.72,216.9]
[1736568610885,9.01668517,186.77,186.73,0.4004329]
[1736568611065,9.01668517,186.77,186.72,216.9]
[1736568611261,9.01668517,186.76,186.72,216.9]
[1736568612081,9.01668517,186.77,186.72,216.9]
[1736568612489,9.01668517,186.77,186.73,0.40044246]
[1736568612658,9.01668517,186.78,186.75,236.9]
[1736568616580,9.01668517,186.79,186.75,236.9]
[1736568617591,9.01668517,186.78,186.75,236.9]
[1736568620590,1.00369803,186.87,186.76,0.40030547]
[1736568620890,9.01668517,186.83,186.79,236.9]
[1736568621099,9.01668517,186.85,186.8,217.29974303]
[1736568621272,9.01668517,186.84,186.8,216.9]
[1736568621587,9.01668517,186.83,186.8,216.9]
[1736568630493,9.01668517,186.83,186.82,20.0]
[1736568631204,9.01668517,186.83,186.82,236.9]
[1736568634205,1.00340642,186.91,186.82,236.9]
[1736568634513,9.01668517,186.85,186.82,236.9]
[1736568640687,9.01668517,186.84,186.82,236.9]
[1736568640887,9.01668517,186.83,186.82,236.9]
[1736568642112,9.01668517,186.84,186.82,236.9]
[1736568643116,24.7802711,186.91,186.82,236.9]
[1736568643411,9.01668517,186.84,186.82,236.9]
[1736568649305,9.01668517,186.86,186.85,20.0]
[1736568650518,47.66954068,186.93,186.85,101.3]
[1736568650707,9.01668517,186.89,186.85,236.9]
[1736568651008,9.01668517,186.89,186.86,0.39919314]
[1736568653420,9.01668517,186.88,186.86,135.99919314]
[1736568653592,9.01668517,186.88,186.86,135.6]
[1736568653798,10.0,186.93,186.86,135.6]
[1736568653996,9.01668517,186.88,186.86,135.6]
[1736568654715,9.01668517,186.87,186.86,135.6]
[1736568658035,9.01668517,186.87,186.85,216.9]
[1736568658234,9.01668517,186.86,186.85,216.9]
[1736568663528,24.7802444,186.91,186.85,216.9]
[1736568663832,9.01668517,186.86,186.85,216.9]
[1736568665613,9.01668517,186.86,186.85,81.3]
[1736568668153,68.86030985,186.86,186.79,5.05344823]
[1736568668321,9.01668517,186.8,186.79,5.05344823]
[1736568681930,23.776884,186.85,186.79,5.05344823]
[1736568682131,9.01668517,186.8,186.79,5.05344823]
[1736568685251,9.01668517,186.81,186.79,5.05344823]
[1736568688162,9.01668517,186.8,186.79,5.05344823]
[1736568691551,23.776884,186.85,186.79,5.05344823]
[1736568691750,9.01668517,186.81,186.79,5.05344823]
[1736568710662,1.00351045,186.89,186.82,20.0]
[1736568710862,9.01668517,186.84,186.82,25.05344823]
[1736568711469,9.01668517,186.83,186.82,25.05344823]
[1736568713176,9.01668517,186.83,186.82,5.05344823]
[1736568715089,9.01668517,186.83,186.79,140.65344823]
[1736568715290,9.01668517,186.8,186.79,140.65344823]
[1736568720989,9.01668517,186.8,186.79,5.05344823]
[1736568728698,1.6153,186.86,186.79,5.05344823]
[1736568728899,9.01668517,186.81,186.79,5.05344823]
[1736568731018,9.01668517,186.8,186.79,5.05344823]
[1736568733435,9.01668517,186.81,186.79,5.05344823]
[1736568734739,9.01668517,186.8,186.75,5.45369884]
[1736568735060,9.01668517,186.8,186.7,13.17074823]
[1736568735061,9.01668517,186.76,186.7,13.17074823]
[1736568735353,9.01668517,186.71,186.7,5.05344823]
[1736568743748,8.95226987,186.71,186.7,5.05344823]
[1736568745050,8.95226987,186.71,186.69,135.6]
[1736568745239,9.01668517,186.7,186.69,5.05344823]
[1736568747558,9.01668517,186.71,186.69,5.05344823]
[1736568752648,9.01668517,186.7,186.69,5.05344823]
[1736568762972,9.01668517,186.72,186.69,5.05344823]
[1736568763181,9.01668517,186.71,186.69,5.05344823]
[1736568772874,9.01668517,186.7,186.69,5.05344823]
[1736568774476,9.01668517,186.7,186.64,5.05344823]
[1736568774781,9.01668517,186.65,186.64,5.05344823]
[1736568781184,23.776884,186.71,186.64,5.05344823]
[1736568781393,9.01668517,186.65,186.64,5.05344823]
[1736568785886,23.776884,186.71,186.64,5.05344823]
[1736568786097,9.01668517,186.65,186.64,5.05344823]
[1736568787090,9.01668517,186.65,186.61,5.05344823]
[1736568787287,9.01668517,186.62,186.61,5.05344823]
[1736568790475,9.01668517,186.62,186.58,5.05344823]
[1736568790670,9.01668517,186.59,186.58,5.05344823]
[1736568793381,9.01668517,186.6,186.58,5.05344823]
[1736568793988,9.01668517,186.59,186.58,5.05344823]
[1736568797275,9.01668517,186.6,186.58,5.05344823]
[1736568799294,9.01668517,186.59,186.58,5.05344823]
[1736568803171,9.01668517,186.59,186.52,140.65344823]
[1736568803378,2.50807063,186.62,186.52,5.05344823]
[1736568803379,9.01668517,186.53,186.52,5.05344823]
[1736568804189,9.01668517,186.53,186.52,20.0]
[1736568804881,9.01668517,186.53,186.49,5.05344823]
[1736568805202,9.01668517,186.5,186.49,5.05344823]
[1736568808779,9.01668517,186.5,186.47,20.0]
[1736568808979,9.01668517,186.48,186.47,20.0]
[1736568809175,1.00543924,186.55,186.47,20.0]
[1736568809385,9.01668517,186.49,186.47,25.05344823]
[1736568811900,9.01668517,186.48,186.47,25.05344823]
[1736568812283,9.01668517,186.48,186.44,48.26]
[1736568812476,9.01668517,186.45,186.44,48.26]
[1736568813201,23.776884,186.44,186.37,135.6]
[1736568813502,9.01668517,186.38,186.34,140.65344823]
[1736568813803,9.01668517,186.35,186.34,140.65344823]
[1736568814181,9.01668517,186.35,186.3,135.6]
[1736568814398,9.01668517,186.33,186.3,135.6]
[1736568814978,9.01668517,186.33,186.32,20.0]
[1736568815179,9.01668517,186.33,186.3,135.6]
[1736568816208,9.01668517,186.33,186.32,20.0]
[1736568816811,9.01668517,186.33,186.3,135.6]
[1736568817604,36.06674068,186.39,186.3,135.6]
[1736568817906,9.01668517,186.34,186.3,135.6]
[1736568819911,9.01668517,186.36,186.33,25.05344823]
[1736568820407,23.776884,186.42,186.33,25.05344823]
[1736568820592,9.01668517,186.36,186.33,25.05344823]
[1736568821206,9.01668517,186.35,186.33,25.05344823]
[1736568821603,9.01668517,186.34,186.33,25.05344823]
[1736568822990,9.01668517,186.34,186.33,5.05344823]
[1736568826012,9.01668517,186.34,186.33,25.05344823]
[1736568829121,32.79356917,186.34,186.28,5.05344823]
[1736568829327,9.01668517,186.3,186.28,5.05344823]
[1736568830622,9.01668517,186.31,186.28,5.05344823]
[1736568830907,9.01668517,186.32,186.31,20.0]
[1736568831110,9.01668517,186.33,186.31,20.0]
[1736568831652,9.01668517,186.34,186.31,25.05344823]
[1736568832336,1.00613192,186.41,186.31,160.65344823]
[1736568832638,9.01668517,186.36,186.31,160.65344823]
[1736568832817,9.01668517,186.35,186.31,160.65344823]
[1736568833426,9.01668517,186.34,186.31,160.65344823]
[1736568833633,9.01668517,186.33,186.31,25.05344823]
[1736568835640,9.01668517,186.34,186.31,25.05344823]
[1736568836658,9.01668517,186.33,186.31,25.05344823]
[1736568839453,9.01668517,186.34,186.31,25.05344823]
[1736568842171,9.01668517,186.35,186.3,20.0]
[1736568842354,9.01668517,186.35,186.3,20.40505084]
[1736568843756,2.60046975,186.42,186.31,20.0]
[1736568843950,9.01668517,186.38,186.35,20.0]
[1736568844460,9.01668517,186.39,186.35,160.65344823]
[1736568847745,9.01668517,186.36,186.35,25.05344823]
[1736568848069,9.01668517,186.36,186.35,20.0]
[1736568848377,9.01668517,186.36,186.32,147.17904823]
[1736568848561,9.01668517,186.34,186.32,147.17904823]
[1736568849364,11.4712,186.49,186.36,155.6]
[1736568849567,9.01668517,186.44,186.37,0.40435603]
[1736568849777,9.01668517,186.45,186.37,0.40435603]
[1736568849984,9.01668517,186.46,186.4,155.6]
[1736568850277,9.01668517,186.46,186.43,20.0]
[1736568851561,9.01668517,186.47,186.44,20.0]
[1736568851770,9.01668517,186.46,186.44,20.0]
[1736568858677,9.01668517,186.48,186.47,20.0]
[1736568858861,1.00548325,186.53,186.47,20.0]
[1736568859174,9.01668517,186.49,186.47,20.0]
[1736568870599,23.776884,186.54,186.47,20.0]
[1736568870894,9.01668517,186.51,186.47,20.0]
[1736568871094,23.776884,186.54,186.47,20.0]
[1736568871271,9.01668517,186.5,186.47,20.0]
[1736568871470,9.01668517,186.49,186.47,20.0]
[1736568871773,9.01668517,186.5,186.47,20.0]
[1736568872606,9.01668517,186.49,186.47,20.0]
[1736568872790,9.01668517,186.48,186.47,20.0]
[1736568894309,9.01668517,186.5,186.47,20.0]
[1736568895902,9.01668517,186.49,186.47,20.0]
[1736568897215,9.01668517,186.48,186.47,20.0]
[1736568897523,9.01668517,186.48,186.44,5.05344823]
[1736568897818,9.01668517,186.45,186.44,5.05344823]
[1736568900291,23.776884,186.5,186.43,20.0]
[1736568900609,9.01668517,186.44,186.43,20.0]
[1736568901721,9.01668517,186.44,186.4,140.65344823]
[1736568901902,9.01668517,186.41,186.4,5.05344823]
[1736568902287,9.01668517,186.41,186.35,13.11934823]
[1736568902490,9.01668517,186.37,186.35,148.71934823]
[1736568902990,9.01668517,186.37,186.35,140.65344823]
[1736568903190,9.01668517,186.36,186.31,16.07434823]
[1736568903432,9.01668517,186.34,186.31,16.07434823]
[1736568904097,9.01668517,186.34,186.33,20.0]
[1736568907215,9.01668517,186.34,186.31,5.05344823]
[1736568907519,9.01668517,186.32,186.3,183.9]
[1736568907715,9.01668517,186.31,186.3,48.3]
[1736568908293,9.01668517,186.32,186.3,48.3]
[1736568908716,9.01668517,186.31,186.3,48.3]
[1736568909433,9.01668517,186.31,186.3,20.0]
[1736568910236,9.01668517,186.31,186.27,6.6625]
[1736568910528,9.01668517,186.29,186.26,1.658]
[1736568910892,9.01668517,186.29,186.28,20.0]
[1736568915507,9.01668517,186.29,186.25,135.6]
[1736568915714,9.01668517,186.26,186.22,21.2025]
[1736568916024,9.01668517,186.26,186.25,20.0]
[1736568922325,9.01668517,186.26,186.22,16.6625]
[1736568922621,9.01668517,186.25,186.24,20.0]
[1736568923128,1.0066887,186.29,186.25,20.0]
[1736568923336,9.01668517,186.34,186.27,20.0]
[1736568923536,9.01668517,186.36,186.29,1.6052]
[1736568923743,9.01668517,186.36,186.33,20.0]
[1736568924423,6.4006,186.42,186.33,20.0]
[1736568924424,9.01668517,186.38,186.33,20.0]
[1736568924623,9.01668517,186.39,186.33,20.0]
[1736568924927,9.01668517,186.39,186.33,20.40479525]
[1736568925109,9.01668517,186.4,186.33,20.40479525]
[1736568925524,9.01668517,186.39,186.33,20.40479525]
[1736568926434,1.00588106,186.44,186.33,20.40479525]
[1736568926610,9.01668517,186.41,186.33,20.40479525]
[1736568927025,9.01668517,186.41,186.33,20.0]
[1736568928058,9.01668517,186.4,186.34,0.40453738]
[1736568931807,1.00579547,186.47,186.37,21.5156]
[1736568932067,9.01668517,186.43,186.37,21.5156]
[1736568932731,1.00579547,186.47,186.41,20.0]
[1736568932932,9.01668517,186.44,186.41,20.0]
[1736568933875,9.01668517,186.43,186.41,20.0]
[1736568937777,9.01668517,186.44,186.41,20.0]
[1736568937951,9.01668517,186.43,186.41,20.0]
[1736568946984,37.07237669,186.48,186.37,1.5156]
[1736568946985,9.01668517,186.42,186.37,1.5156]
[1736568947182,9.01668517,186.39,186.38,20.0]
[1736568947775,9.01668517,186.39,186.37,20.0]
[1736568948199,9.01668517,186.4,186.37,20.0]
[1736568948687,9.01668517,186.39,186.37,20.0]
[1736568949480,9.01668517,186.4,186.37,20.0]
[1736568950691,9.01668517,186.39,186.37,20.0]
[1736568951693,9.01668517,186.4,186.37,20.0]
[1736568952681,9.01668517,186.39,186.37,20.0]
[1736568954301,9.01668517,186.4,186.37,20.0]
[1736568954888,9.01668517,186.4,186.34,11.1232]
[1736568954889,9.01668517,186.38,186.33,1.5708]
[1736568955075,9.01668517,186.34,186.3,6.5832]
[1736568955871,9.01668517,186.35,186.33,20.0]
[1736568957274,27.05005551,186.39,186.33,20.0]
[1736568957481,9.01668517,186.36,186.33,20.0]
[1736568960696,1.0060808,186.42,186.33,20.0]
[1736568960891,9.01668517,186.39,186.33,20.0]
[1736568961103,9.01668517,186.39,186.34,0.40467606]
[1736568962271,9.01668517,186.39,186.33,20.40469469]
[1736568962791,1.00582707,186.46,186.35,21.6348]
[1736568963001,9.01668517,186.41,186.35,21.6348]
[1736568963187,9.01668517,186.43,186.36,0.40445719]
[1736568963502,9.01668517,186.43,186.4,20.0]
[1736568969981,1.00577389,186.47,186.4,20.0]
[1736568970181,9.01668517,186.43,186.4,20.0]
[1736568976007,9.01668517,186.43,186.41,20.0]
[1736568976210,1.00568847,186.48,186.42,20.0]
[1736568976397,6.0714,186.51,186.42,20.0]
[1736568976398,1.00554724,186.51,186.42,20.0]
[1736568976601,9.01668517,186.46,186.42,20.0]
[1736568976816,9.01668517,186.46,186.4,20.0]
[1736568976996,9.01668517,186.46,186.4,160.65344823]
[1736568981626,2.59002197,186.54,186.42,1.6297]
[1736568981795,2.59002197,186.54,186.43,0.4035956]
[1736568982126,9.01668517,186.5,186.47,20.0]
[1736568985500,9.01668517,186.51,186.47,5.05344823]
[1736568985701,9.01668517,186.51,186.48,20.0]
[1736568987521,9.01668517,186.5,186.48,20.0]
[1736568987703,9.01668517,186.49,186.48,20.0]
[1736568990256,9.01668517,186.49,186.47,5.05344823]
[1736568990438,9.01668517,186.48,186.43,9.57344823]
[1736568990637,9.01668517,186.44,186.42,135.6]
[1736568990815,9.01668517,186.43,186.39,11.30834823]
[1736568991014,9.01668517,186.42,186.39,11.30834823]
[1736568991316,9.01668517,186.42,186.41,20.0]
[1736568991833,9.01668517,186.42,186.39,11.30834823]
[1736568992149,9.01668517,186.42,186.41,20.0]
[1736568992947,9.01668517,186.43,186.42,20.0]
[1736568995938,9.01668517,186.43,186.38,135.6]
[1736568996110,9.01668517,186.39,186.34,11.22134823]
[1736568996321,9.01668517,186.38,186.37,20.0]
[1736568997410,9.01668517,186.39,186.37,20.0]
[1736568997612,9.01668517,186.4,186.37,20.0]
[1736569001636,9.01668517,186.41,186.37,20.0]
[1736569005953,2.64831309,186.46,186.37,20.0]
[1736569006148,9.01668517,186.43,186.37,20.0]
[1736569006321,2.64831309,186.46,186.37,160.65344823]
[1736569006322,1.00591309,186.46,186.37,160.65344823]
[1736569006639,9.01668517,186.43,186.37,160.65344823]
[1736569006947,9.01668517,186.44,186.37,160.65344823]
[1736569007748,9.01668517,186.44,186.38,0.40413184]
[1736569008544,9.01668517,186.45,186.41,20.0]
[1736569009149,9.01668517,186.44,186.41,20.0]
[1736569009348,9.01668517,186.43,186.41,20.0]
[1736569009548,9.01668517,186.42,186.35,140.65344823]
[1736569009731,9.01668517,186.39,186.35,9.57344823]